bitfinex/quotes_ETHUSD_20220226
["timestamp","ask_amount","ask_price","bid_price","bid_amount"]
[1645859176694,12.55662346,2779.9,2779.5,0.0049578]
[1645859176695,13.55662346,2779.9,2779.5,0.0049578]
[1645859177087,10.94,2779.7,2779.6,0.22603763]
[1645859177288,11.94,2779.7,2779.6,0.22603763]
[1645859177892,11.94,2779.7,2779.5,0.0049578]
[1645859178091,11.94,2779.7,2779.6,0.22603763]
[1645859180439,13.22600567,2779.7,2779.1,0.22603763]
[1645859180642,13.22600567,2779.7,2779.2,0.22395076]
[1645859180643,10.94,2779.4,2779.2,0.22395076]
[1645859180943,1.0,2779.4,2779.3,0.22395076]
[1645859181142,1.0,2779.4,2779.0,0.22395076]
[1645859181340,11.94,2779.6,2779.0,0.22395076]
[1645859181940,11.94,2779.6,2779.1,0.22395076]
[1645859182141,11.94,2779.6,2779.2,0.22395076]
[1645859182339,11.94,2779.6,2779.3,0.22395076]
[1645859182539,1.29667589,2779.4,2778.8,0.0032098]
[1645859182741,1.29667589,2779.4,2778.9,5.0]
[1645859182985,1.29667589,2779.4,2779.0,0.22379457]
[1645859183785,1.29667589,2779.4,2779.1,0.00495455]
[1645859183988,1.29667589,2779.4,2779.2,0.22379457]
[1645859184585,1.31820401,2779.4,2779.2,0.22379457]
[1645859184989,1.31820401,2779.4,2779.3,0.22379457]
[1645859185988,0.02152812,2779.4,2779.3,0.22379457]
[1645859186188,0.02152812,2779.4,2779.2,0.00495442]
[1645859186387,0.02152812,2779.4,2779.3,0.22379457]
[1645859187044,0.02152812,2779.4,2779.3,0.58339457]
[1645859187840,0.02152812,2779.4,2779.3,0.22379457]
[1645859188245,1.44114468,2779.4,2779.3,0.22379457]
[1645859190374,0.02152812,2779.4,2779.3,0.22379457]
[1645859192178,0.79458898,2779.5,2779.3,0.22379457]
[1645859193679,0.79458898,2779.5,2779.3,0.22857864]
[1645859193879,0.79458898,2779.5,2779.4,0.22379457]
[1645859196737,11.73458898,2779.5,2779.4,0.22379457]
[1645859196939,14.02632926,2779.5,2779.4,0.22379457]
[1645859197139,15.02632926,2779.5,2779.4,0.22379457]
[1645859197341,15.02632926,2779.5,2779.3,0.00463252]
[1645859197342,15.94,2779.4,2779.3,0.00463252]
[1645859197736,16.94,2779.4,2779.3,0.00463252]
[1645859197989,16.94,2779.4,2779.0,0.0032098]
[1645859198190,16.94,2779.4,2779.2,0.00463261]
[1645859198491,19.094,2779.4,2779.2,0.00463261]
[1645859198691,17.594,2779.3,2779.2,3.261e-05]
[1645859198891,18.33162772,2779.3,2779.2,3.261e-05]
[1645859199089,20.6364084,2779.3,2779.2,3.261e-05]
[1645859199293,13.094,2779.1,2778.6,0.0032098]
[1645859199491,13.094,2778.9,2778.4,0.25]
[1645859199690,13.094,2778.9,2778.1,0.0032098]
[1645859199691,11.2996,2778.7,2778.1,0.0032098]
[1645859199894,1.15178367,2778.1,2777.9,5.6830352]
[1645859200091,1.15178367,2778.1,2777.9,5.6798254]
[1645859200693,1.15178367,2778.1,2778.0,0.6798254]
[1645859200995,1.15178367,2778.1,2777.9,5.00464373]
[1645859200996,17.44,2778.0,2777.9,0.00464373]
[1645859201191,18.0949,2778.0,2777.9,0.00464373]
[1645859201394,21.2489,2778.0,2777.9,0.00464373]
[1645859201662,1.6549,2778.0,2777.6,0.0032098]
[1645859201839,1.0,2778.3,2777.3,0.68177475]
[1645859202037,1.0,2778.3,2777.1,1.26468738]
[1645859202038,1.0,2778.1,2777.4,0.68498455]
[1645859202235,1.2026,2778.4,2777.4,0.68177475]
[1645859202439,1.22397311,2778.2,2777.5,1.24450305]
[1645859202636,12.1426,2778.4,2777.5,1.24129325]
[1645859202837,12.1426,2778.4,2777.5,1.24450305]
[1645859203041,13.1426,2778.4,2777.5,1.24450305]
[1645859203743,13.1426,2778.4,2777.5,1.9262778]
[1645859203744,1.18122674,2778.3,2777.5,1.9262778]
[1645859203940,1.18122674,2778.3,2777.4,0.68177475]
[1645859204342,1.18122674,2778.3,2777.5,0.0032098]
[1645859204540,0.02307798,2778.0,2777.5,0.0032098]
[1645859204740,0.02307798,2778.0,2777.4,0.68177475]
[1645859205591,0.02307798,2778.0,2777.6,0.00478683]
[1645859206588,0.02307798,2778.0,2777.3,0.0032098]
[1645859206589,0.02307798,2778.0,2777.3,0.68498455]
[1645859206791,0.02307798,2778.0,2777.7,0.00478674]
[1645859207593,1.0792283,2777.9,2777.7,0.00478674]
[1645859207791,1.0792283,2777.9,2777.3,0.68498455]
[1645859207992,1.0792283,2777.9,2777.7,0.00461399]
[1645859208190,1.0792283,2777.9,2777.3,0.65805728]
[1645859208391,1.0792283,2777.9,2777.3,0.01845874]
[1645859208893,1.0792283,2777.9,2777.1,0.00326253]
[1645859208894,12.3788283,2777.9,2777.1,0.00326253]
[1645859209147,1.37883521,2777.2,2776.7,5.94336253]
[1645859209330,1.37883521,2777.2,2776.5,2.30857757]
[1645859209632,1.37883521,2777.2,2776.3,1.35763107]
[1645859209633,1.37883521,2777.2,2776.3,0.90508738]
[1645859209833,1.37883521,2777.2,2776.3,1.26468738]
[1645859210237,1.37883521,2777.2,2776.3,0.3596]
[1645859210434,1.37883521,2777.2,2776.6,0.00242398]
[1645859211041,12.31883521,2777.2,2776.6,0.00242398]
[1645859211238,13.31883521,2777.2,2776.2,0.3976]
[1645859211639,13.31883521,2777.2,2776.8,0.00491989]
[1645859211842,3.56083521,2777.2,2776.8,0.00491989]
[1645859212041,0.05852907,2777.2,2776.8,0.00491989]
[1645859212242,9.1582,2777.7,2776.8,0.00491989]
[1645859212440,1.0,2777.5,2776.3,0.01968252]
[1645859212640,1.0,2777.5,2776.2,3.8976]
[1645859212888,9.5178,2777.7,2776.9,0.0049198]
[1645859213090,1.08711771,2777.4,2776.9,0.0049198]
[1645859213688,1.08711771,2777.4,2776.3,3.8]
[1645859213889,1.08711771,2777.4,2776.3,0.3]
[1645859214090,1.08711771,2777.4,2777.0,0.00491967]
[1645859214291,10.94,2777.3,2777.0,0.00491967]
[1645859214490,10.94,2777.3,2776.3,0.29460132]
[1645859214692,0.02245048,2777.2,2776.2,0.3976]
[1645859215592,0.02245048,2777.2,2776.3,0.00324903]
[1645859215793,1.36569256,2776.7,2776.3,0.00324903]
[1645859215992,0.02245048,2777.2,2776.2,0.3976]
[1645859216291,0.00251759,2776.8,2776.3,0.00324903]
[1645859216490,0.00251759,2776.8,2776.2,0.3976]
[1645859217334,11.94,2777.1,2776.2,0.3976]
[1645859217530,0.00251759,2776.8,2776.3,0.16746216]
[1645859217731,1.02295895,2776.7,2776.3,0.17071119]
[1645859217937,1.02295895,2776.7,2776.3,0.14783216]
[1645859218139,1.02295895,2776.7,2776.2,0.3976]
[1645859218335,1.02295895,2776.7,2776.2,0.34184]
[1645859218737,1.02295895,2776.7,2776.3,0.00492028]
[1645859219137,1.02295895,2776.7,2776.2,0.29676028]
[1645859219335,0.00491948,2776.8,2776.2,0.27854028]
[1645859219736,0.03106196,2776.7,2776.2,0.27854028]
[1645859221192,0.03358328,2776.7,2776.2,0.27854028]
[1645859222190,0.03106196,2776.7,2776.2,0.27854028]
[1645859222391,0.03358328,2776.7,2776.2,0.27854028]
[1645859222991,1.26645694,2776.7,2776.2,0.27854028]
[1645859223193,1.26645694,2776.7,2776.2,0.22854028]
[1645859223398,1.26393562,2776.7,2776.2,0.22854028]
[1645859223593,1.26393562,2776.7,2776.2,0.23346083]
[1645859223594,1.26885527,2776.7,2776.2,0.23346083]
[1645859224535,0.03106196,2776.7,2776.2,0.22854028]
[1645859224736,0.03598161,2776.7,2776.2,0.23346083]
[1645859225738,1.43721476,2776.5,2776.2,0.22854028]
[1645859225942,1.43721476,2776.5,2776.2,0.23346083]
[1645859226640,0.03598161,2776.7,2776.2,0.23346083]
[1645859226840,0.03106196,2776.7,2776.2,0.12854028]
[1645859227242,0.03106196,2776.7,2776.2,0.13346074]
[1645859227243,0.03598152,2776.7,2776.2,0.13346074]
[1645859227646,0.03598152,2776.7,2776.2,0.00492046]
[1645859228084,0.03106196,2776.7,2775.9,0.25324903]
[1645859228283,0.03598161,2776.7,2776.2,0.00492055]
[1645859228487,12.15308161,2776.7,2776.2,0.00492055]
[1645859229084,13.15308161,2776.7,2776.2,0.00492055]
[1645859229286,13.14816196,2776.7,2775.7,0.00324903]
[1645859229586,2.21308161,2776.7,2776.2,0.00492055]
[1645859229886,1.21308161,2776.7,2776.2,0.00492055]
[1645859230487,1.20816196,2776.7,2776.0,0.00324903]
[1645859230684,1.20816196,2776.7,2775.8,0.14714903]
[1645859230887,0.03598161,2776.7,2776.2,0.00492055]
[1645859231088,0.03598161,2776.7,2776.3,0.1439]
[1645859231287,0.01399129,2776.7,2776.3,1.68987678]
[1645859231485,0.01399129,2776.7,2776.3,1.0145]
[1645859231744,0.00907164,2776.7,2776.5,1.51196669]
[1645859231944,0.00907164,2776.7,2776.6,1.0145]
[1645859232144,4.24776325,2777.7,2776.7,7.0]
[1645859232346,4.24776325,2777.7,2776.8,0.1439]
[1645859232347,1.2143,2777.7,2776.8,0.1439]
[1645859232543,1.2143,2777.7,2776.8,3.64714903]
[1645859232744,4.4593,2778.2,2776.8,4.30674903]
[1645859232950,4.4593,2778.2,2776.9,0.8706]
[1645859232951,1.19,2778.2,2776.9,0.8706]
[1645859233148,1.2403,2778.4,2777.0,4.00674903]
[1645859233349,1.2403,2778.4,2777.2,0.3596]
[1645859233550,1.2403,2778.4,2777.3,4.00674903]
[1645859233751,1.2403,2778.4,2777.3,4.30674903]
[1645859234150,1.2403,2778.4,2777.3,0.80674903]
[1645859234353,1.32684576,2778.2,2777.5,1.35971046]
[1645859234649,1.2403,2778.4,2777.5,1.35971046]
[1645859234848,1.90023,2779.0,2777.5,1.71931046]
[1645859235052,1.90023,2779.0,2777.9,5.0]
[1645859235053,1.0,2779.0,2777.9,5.0]
[1645859235248,5.5114,2779.2,2777.9,5.0]
[1645859235249,5.5114,2779.2,2778.0,4.011]
[1645859235484,2.3854,2779.2,2778.1,3.5]
[1645859235684,2.3854,2779.2,2778.2,0.6549]
[1645859235884,2.3854,2779.2,2778.3,3.5]
[1645859236084,2.3854,2779.2,2778.2,4.1549]
[1645859236286,2.8628,2779.4,2778.2,0.6549]
[1645859236483,2.8628,2779.4,2778.2,4.1549]
[1645859236685,8.5136,2779.6,2778.2,0.6549]
[1645859236885,0.00491785,2778.8,2778.2,0.6549]
[1645859237084,0.00491785,2778.8,2778.6,1.35419655]
[1645859237685,8.5136,2779.6,2778.3,5.9354]
[1645859237686,4.6693,2779.6,2778.3,5.9354]
[1645859237886,15.6093,2779.6,2778.3,5.6354]
[1645859238091,0.00491785,2778.8,2778.3,5.6354]
[1645859238493,0.00491785,2778.8,2778.4,0.13781573]
[1645859238693,0.00491785,2778.8,2778.4,1.05870161]
[1645859238898,0.89996,2779.4,2778.5,0.13777757]
[1645859239142,0.00491793,2778.7,2778.4,1.05870161]
[1645859239535,0.00491793,2778.7,2778.5,0.13798527]
[1645859239938,0.00491793,2778.7,2778.0,0.1439]
[1645859240138,11.2996,2778.9,2778.1,0.1380269]
[1645859240336,10.94,2778.7,2777.9,0.25]
[1645859240536,10.94491793,2778.7,2778.0,0.13812666]
[1645859240736,11.94491793,2778.7,2778.1,0.13812666]
[1645859240937,11.94491793,2778.7,2777.5,0.1439]
[1645859241137,11.94491793,2778.7,2777.6,0.14136884]
[1645859241340,11.94,2778.7,2777.7,0.00324903]
[1645859241551,0.00491836,2778.2,2777.7,0.00324903]
[1645859241741,0.00491836,2778.2,2777.6,0.13811981]
[1645859241943,0.00491836,2778.2,2778.0,1.29044818]
[1645859242144,0.00491836,2778.2,2778.1,3.99771981]
[1645859242343,0.00491836,2778.2,2778.1,1.15261981]
[1645859242743,1.24239149,2779.2,2778.1,1.15261981]
[1645859242984,0.00491832,2778.3,2778.2,0.13811981]
[1645859243883,1.24239149,2779.2,2778.2,0.13811981]
[1645859244185,0.00475225,2778.4,2778.2,0.13811981]
[1645859245082,0.02782279,2778.6,2778.2,0.13811981]
[1645859245286,0.00475221,2778.4,2778.3,0.3596]
[1645859245486,0.00475221,2778.4,2778.3,5.18409659]
[1645859245687,0.00475221,2778.4,2778.3,1.15261981]
[1645859245883,0.00475221,2778.4,2778.3,1.45261981]
[1645859246084,0.02782279,2778.6,2778.3,1.45261981]
[1645859246284,0.02782279,2778.6,2778.5,1.76866202]
[1645859246484,0.02782279,2778.6,2778.5,2.35068183]
[1645859247159,0.02782279,2778.6,2778.5,1.99108183]
[1645859247361,0.02782279,2778.6,2778.5,0.58201981]
[1645859247559,0.02782279,2778.6,2778.5,0.43811981]
[1645859247765,0.02782279,2778.6,2778.5,0.13811981]
[1645859248164,0.02782279,2778.6,2778.5,0.43811981]
[1645859248564,0.02782279,2778.6,2778.5,0.13811981]
[1645859248765,0.02782279,2778.6,2778.4,0.13811981]
[1645859249765,1.12159794,2779.2,2778.4,1.19775768]
[1645859249967,0.0025212,2778.6,2778.5,0.13811981]
[1645859250982,1.12159794,2779.2,2778.5,0.13811981]
[1645859251182,0.00492148,2778.7,2778.5,0.13811981]
[1645859252086,0.89978,2779.6,2779.0,0.00090224]
[1645859252884,1.14945052,2779.2,2779.0,0.00090224]
[1645859253687,0.004921,2779.2,2779.0,0.00090224]
[1645859254640,0.89978,2779.6,2779.0,0.00090224]
[1645859254641,1.25450471,2779.3,2779.0,0.00090224]
[1645859254840,0.004921,2779.2,2779.0,0.00090224]
[1645859255842,0.89978,2779.6,2779.0,0.00090224]
[1645859256042,0.004921,2779.2,2779.0,0.00090224]
[1645859257043,0.89978,2779.6,2779.0,0.00090224]
[1645859257247,0.004921,2779.2,2779.0,0.00090224]
[1645859258101,13.19938,2779.6,2779.0,0.00090224]
[1645859258300,12.03286897,2779.4,2779.0,0.00090224]
[1645859258502,0.00252074,2779.2,2779.0,0.00090224]
[1645859259302,0.89996,2779.3,2779.0,0.00090224]
[1645859259703,0.00492404,2779.2,2779.0,0.00090224]
[1645859260502,1.79992,2779.3,2779.0,0.00090224]
[1645859260903,0.00047174,2779.0,2778.4,0.13781886]
[1645859261509,0.90042174,2779.0,2778.4,0.13781886]
[1645859262144,0.00252133,2778.8,2778.4,0.13781886]
[1645859262344,0.00252133,2778.8,2778.4,0.43781886]
[1645859262646,0.00252133,2778.8,2778.5,0.13781886]
[1645859262844,0.00252133,2778.8,2778.5,0.43781886]
[1645859263046,0.90042174,2779.0,2778.5,0.3]
[1645859263244,0.90042174,2779.0,2778.3,1.23665996]
[1645859263245,0.00252133,2778.8,2778.3,0.3]
[1645859263447,0.00252133,2778.8,2778.4,0.13793664]
[1645859263845,0.00252133,2778.8,2778.5,0.13793664]
[1645859264048,0.00252133,2778.8,2778.6,0.13793664]
[1645859264250,0.90042174,2779.0,2778.1,0.811]
[1645859264547,0.00492806,2778.8,2778.2,0.1379244]
[1645859265503,0.90042174,2779.0,2778.2,0.1379244]
[1645859265699,0.00492819,2778.6,2778.2,0.1379244]
[1645859266712,1.24821915,2778.9,2778.2,0.1379244]
[1645859267001,0.00492828,2778.5,2778.2,1.56601516]
[1645859267200,0.00492828,2778.5,2778.1,0.811]
[1645859267201,0.00492828,2778.5,2778.3,0.1379244]
[1645859267402,0.00492828,2778.5,2778.4,0.1379244]
[1645859267805,1.24821915,2778.9,2778.2,0.1379244]
[1645859268005,0.00492823,2778.6,2778.3,0.1379244]
[1645859268205,0.00492823,2778.6,2778.4,0.1379244]
[1645859268405,0.00492823,2778.6,2778.2,0.1379244]
[1645859268804,0.035799,2778.6,2778.2,0.1379244]
[1645859269005,0.03087077,2778.6,2778.2,0.1379244]
[1645859269236,0.00492828,2778.5,2778.2,0.1379244]
[1645859270239,0.03087077,2778.6,2778.2,0.1379244]
[1645859270441,0.00492832,2778.5,2778.2,0.1379244]
[1645859271139,0.00492832,2778.5,2778.2,1.38756785]
[1645859271339,0.03087077,2778.6,2778.2,1.38756785]
[1645859271340,0.03087077,2778.6,2778.3,0.1379244]
[1645859271740,0.00492832,2778.5,2778.3,0.1379244]
[1645859272241,0.76456108,2779.0,2778.4,3.0]
[1645859272440,0.76456108,2779.0,2778.5,0.1379244]
[1645859272913,1.36535072,2779.0,2778.5,0.1379244]
[1645859273517,1.36535072,2779.0,2778.6,0.1379244]
[1645859273819,1.00482225,2779.0,2778.7,0.1379244]
[1645859274020,0.0025177,2778.9,2778.8,0.1379244]
[1645859274219,1.37606559,2778.9,2778.2,0.81330118]
[1645859274418,0.03087202,2778.5,2778.2,0.81330118]
[1645859275724,0.03087202,2778.5,2778.2,0.1379244]
[1645859275921,0.03087202,2778.5,2778.1,1.27537678]
[1645859275922,0.03087202,2778.5,2778.3,0.1379244]
[1645859276121,0.03087202,2778.5,2778.4,0.1379244]
[1645859276520,1.40433279,2778.5,2778.4,0.1379244]
[1645859276743,1.40433279,2778.5,2778.1,0.1379244]
[1645859276942,2.67760559,2778.4,2778.2,0.1379244]
[1645859277144,2.67760559,2778.4,2778.3,0.1379244]
[1645859277145,1.3043427,2778.4,2778.3,0.1379244]
[1645859277745,2.67944385,2778.4,2778.1,0.1379244]
[1645859277950,1.37501303,2778.3,2778.2,0.1379244]
[1645859278353,1.37501303,2778.3,2778.1,0.1379244]
[1645859278550,1.03087202,2778.5,2778.0,0.1439]
[1645859278551,1.03087202,2778.5,2778.2,0.1379244]
[1645859278751,1.37435192,2778.4,2778.3,0.1379244]
[1645859279551,1.37435192,2778.4,2777.9,0.67537678]
[1645859279751,1.37435192,2778.4,2778.0,0.1379244]
[1645859279952,1.37435192,2778.4,2778.1,0.1379244]
[1645859280154,1.37435192,2778.3,2777.8,0.67537678]
[1645859280400,1.90259387,2778.6,2777.8,0.67537678]
[1645859280401,1.37435192,2778.2,2777.8,0.67537678]
[1645859280586,0.90259387,2778.6,2777.9,0.81330118]
[1645859280786,1.37425949,2778.5,2778.0,0.1379244]
[1645859280993,1.37425949,2778.5,2778.1,0.1379244]
[1645859281186,1.37425949,2778.5,2778.2,0.1379244]
[1645859281389,1.37425949,2778.5,2778.3,0.1379244]
[1645859281588,1.37425949,2778.5,2778.4,0.1379244]
[1645859281786,1.37425949,2778.5,2777.8,0.3]
[1645859281787,1.37425949,2778.5,2778.1,0.1379244]
[1645859281986,0.90500433,2778.6,2777.9,0.67537678]
[1645859282187,0.90008,2778.6,2777.9,0.67537678]
[1645859282588,0.90500438,2778.6,2777.9,0.67537678]
[1645859282788,0.90500438,2778.6,2777.9,2.08808735]
[1645859282789,1.9642016,2778.6,2777.9,2.08808735]
[1645859283193,1.9642016,2778.6,2777.9,0.67537678]
[1645859283395,2.31887722,2778.6,2778.0,0.67537678]
[1645859283598,2.32380155,2778.6,2777.9,0.67537678]
[1645859284344,2.32380155,2778.6,2778.0,0.67537678]
[1645859284543,2.32380155,2778.6,2777.9,0.67537678]
[1645859284544,2.31887722,2778.6,2777.9,0.67537678]
[1645859284945,2.32380155,2778.6,2777.9,0.67537678]
[1645859285748,2.31887722,2778.6,2777.9,0.67537678]
[1645859286153,2.32380155,2778.6,2777.9,0.67537678]
[1645859286450,2.32380155,2778.6,2777.6,1.64898738]
[1645859286451,1.96420155,2778.6,2777.8,0.67537678]
[1645859286851,2.32380155,2778.6,2777.8,0.67537678]
[1645859287051,1.95927722,2778.6,2777.8,0.67537678]
[1645859287249,1.96420151,2778.6,2777.8,0.67537678]
[1645859287449,1.96420151,2778.6,2777.9,0.67537678]
[1645859288093,1.96420151,2778.6,2778.0,0.67537678]
[1645859288293,1.95927722,2778.6,2778.0,0.67537678]
[1645859288499,1.96420155,2778.6,2778.0,0.67537678]
[1645859289494,1.95927722,2778.6,2778.0,0.67537678]
[1645859289694,1.9642016,2778.6,2778.0,0.67537678]
[1645859290698,1.95927722,2778.6,2778.0,0.67537678]
[1645859290897,1.9642016,2778.6,2778.0,0.67537678]
[1645859291098,1.9642016,2778.6,2777.9,0.67537678]
[1645859291498,0.90500438,2778.6,2777.9,0.67537678]
[1645859291738,0.90008,2778.6,2777.9,0.67537678]
[1645859291937,0.90008,2778.6,2778.0,0.67537678]
[1645859292142,0.90500433,2778.6,2778.2,0.67537678]
[1645859292337,1.2122,2778.9,2778.7,0.06906466]
[1645859292537,10.6154,2779.3,2778.7,0.06906466]
[1645859292538,7.915,2779.3,2778.7,0.06906466]
[1645859292739,3.0231,2779.3,2778.7,0.06906466]
[1645859292940,1.3357,2779.6,2778.7,1.25544144]
[1645859292941,1.1918,2779.6,2778.7,1.25544144]
[1645859293142,1.1918,2779.6,2778.8,0.67537678]
[1645859293545,1.1918,2779.6,2778.8,1.18637678]
[1645859293945,1.1918,2779.6,2778.7,1.34444144]
[1645859294140,1.5514,2779.6,2778.7,1.34444144]
[1645859294342,1.5514,2779.6,2778.7,1.04444144]
[1645859294343,12.4914,2779.6,2778.7,1.04444144]
[1645859294643,12.4914,2779.6,2778.7,0.06906466]
[1645859294842,13.4914,2779.6,2778.7,0.06906466]
[1645859295041,1.41891792,2779.2,2778.7,0.06906466]
[1645859295245,0.89993,2779.1,2778.7,0.06906466]
[1645859296890,0.00492784,2779.0,2778.7,0.06906466]
[1645859297893,0.89993,2779.1,2778.7,0.06906466]
[1645859298099,0.00492789,2779.0,2778.7,0.06906466]
[1645859299137,13.7399755,2779.1,2778.7,0.06906466]
[1645859299335,0.00492789,2779.0,2778.7,0.06906466]
[1645859300236,0.3596,2778.8,2778.1,0.25]
[1645859300438,0.3596,2778.8,2777.7,0.01972052]
[1645859300439,0.1439,2778.7,2777.7,0.01972052]
[1645859300637,1.80062,2778.3,2777.7,0.01972052]
[1645859301038,13.10022,2778.3,2777.7,0.01972052]
[1645859301239,12.13226575,2778.2,2777.7,0.01972052]
[1645859301441,0.3596,2778.1,2777.4,0.25]
[1645859301642,0.90046,2777.8,2777.3,0.67862295]
[1645859301938,0.90046,2777.8,2777.4,0.15516745]
[1645859302137,0.90046,2777.8,2777.5,0.13544801]
[1645859303002,0.90046,2777.8,2777.6,0.13544801]
[1645859303205,0.90046,2777.8,2777.7,0.13544801]
[1645859303403,0.90046,2777.8,2777.3,0.00492975]
[1645859303404,1.34430763,2777.5,2777.3,0.00492975]
[1645859303804,0.90046,2777.8,2777.4,0.13543116]
[1645859304005,0.90046,2777.8,2777.5,0.13543116]
[1645859304210,0.90046,2777.8,2777.6,0.13543116]
[1645859304404,0.90046,2777.8,2777.7,0.13543116]
[1645859304805,0.90046,2777.8,2777.4,0.00324617]
[1645859305003,0.90046,2777.8,2777.3,0.67537678]
[1645859305205,0.90046,2777.8,2777.4,0.13543116]
[1645859305505,0.90046,2777.8,2777.5,0.13543116]
[1645859305804,1.29747026,2777.7,2777.6,0.13543116]
[1645859306004,1.29747026,2777.7,2777.4,0.13543116]
[1645859306406,1.29747026,2777.7,2777.5,0.13543116]
[1645859306637,1.29747026,2777.7,2777.6,0.13543116]
[1645859307037,1.29747026,2777.7,2777.4,0.13543116]
[1645859307237,1.29747026,2777.7,2777.5,0.13543116]
[1645859307437,1.29747026,2777.7,2777.6,0.13543116]
[1645859307637,1.29747026,2777.7,2777.2,0.00324617]
[1645859307839,1.29747026,2777.7,2777.3,0.00492966]
[1645859308042,1.29747026,2777.7,2777.4,0.13543116]
[1645859308846,1.29747026,2777.7,2777.5,0.13543116]
[1645859309043,1.29747026,2777.7,2777.6,0.13543116]
[1645859309244,1.29747026,2777.7,2777.4,0.13543116]
[1645859309447,1.29747026,2777.7,2777.5,0.13543116]
[1645859309644,1.29747026,2777.7,2777.6,0.13543116]
[1645859310046,1.29747026,2777.7,2777.3,0.00492971]
[1645859310396,0.90046,2777.8,2777.4,0.13543116]
[1645859311189,0.90046,2777.8,2777.5,0.13543116]
[1645859311390,0.90046,2777.8,2777.6,0.13543116]
[1645859311592,0.90046,2777.8,2777.7,0.13543116]
[1645859311790,0.90046,2777.8,2777.4,0.13543116]
[1645859312290,1.2414632,2777.6,2777.4,0.13543116]
[1645859312490,1.2414632,2777.6,2777.5,0.13543116]
[1645859312890,0.73933849,2777.8,2777.3,0.00492971]
[1645859312891,0.73933849,2777.8,2777.4,0.13543116]
[1645859313095,0.37864908,2777.8,2777.5,0.13543116]
[1645859313296,0.37864908,2777.8,2777.6,0.13543116]
[1645859313496,0.37864908,2777.8,2777.7,0.13543116]
[1645859313896,1.24190407,2777.7,2777.4,0.13543116]
[1645859314138,1.24190407,2777.7,2777.5,0.13218792]
[1645859314341,1.24190407,2777.7,2777.6,0.13218792]
[1645859314641,1.24190407,2777.7,2777.4,0.13218792]
[1645859314839,1.24190407,2777.7,2777.5,0.13218792]
[1645859315039,1.24190407,2777.7,2777.6,0.13218792]
[1645859315438,1.24190407,2777.7,2777.4,0.13218792]
[1645859315639,1.24190407,2777.7,2777.5,0.13218792]
[1645859315943,1.24190407,2777.7,2777.6,0.13218792]
[1645859316139,1.24190407,2777.7,2777.3,0.00492966]
[1645859316440,1.24190407,2777.7,2777.4,0.13218792]
[1645859317243,1.24190407,2777.7,2777.5,0.13218792]
[1645859317442,1.24190407,2777.7,2777.6,0.13218792]
[1645859317642,1.24190407,2777.7,2777.4,0.13218792]
[1645859318492,1.24190407,2777.7,2777.5,0.13218792]
[1645859318689,1.24190407,2777.7,2777.6,0.13218792]
[1645859319090,1.24190407,2777.7,2777.4,0.13218792]
[1645859319290,1.24190407,2777.7,2777.5,0.13218792]
[1645859319491,1.24190407,2777.7,2777.6,0.13218792]
[1645859319896,1.24190407,2777.7,2777.4,0.13218792]
[1645859320093,1.24190407,2777.7,2777.5,0.13218792]
[1645859320296,1.24190407,2777.7,2777.6,0.13218792]
[1645859320696,1.24190407,2777.7,2777.4,0.03218792]
[1645859320897,1.24190407,2777.7,2777.3,0.00492975]
[1645859321499,12.7410493,2777.6,2777.3,0.00492975]
[1645859321751,13.7410493,2777.6,2777.3,0.00492975]
[1645859321951,13.10091,2777.5,2776.8,0.00324617]
[1645859322155,13.10091,2777.5,2777.3,0.0049296]
[1645859322156,12.74131,2777.5,2777.3,0.0049296]
[1645859322356,13.88521,2777.5,2777.3,0.0049296]
[1645859322555,13.88521,2777.5,2776.9,0.01972135]
[1645859322556,11.84072,2777.4,2776.9,0.01972135]
[1645859322754,12.84072,2777.4,2776.9,0.01972135]
[1645859323156,13.20032,2777.4,2776.8,0.00324617]
[1645859323357,0.3596,2777.2,2776.5,0.67862295]
[1645859323555,3.04844491,2777.0,2776.6,0.00324617]
[1645859323858,3.5,2776.9,2776.3,0.00324617]
[1645859324055,3.5,2776.9,2776.2,0.67537678]
[1645859324257,4.5,2776.9,2776.2,0.67537678]
[1645859325062,1.44039439,2776.3,2776.2,0.67537678]
[1645859325261,0.90075,2776.7,2776.2,0.67537678]
[1645859325489,0.89263054,2776.7,2776.2,0.67537678]
[1645859326293,1.20092946,2776.3,2776.1,0.67537678]
[1645859326498,3.5,2776.6,2776.1,0.67537678]
[1645859326694,0.89263054,2776.7,2776.2,0.67537678]
[1645859326896,4.39263054,2776.7,2776.1,0.68030747]
[1645859327392,5.39263054,2776.7,2776.1,0.68030747]
[1645859327595,1.43348321,2776.2,2776.1,0.68030747]
[1645859327994,1.41342307,2776.2,2776.0,0.67537678]
[1645859328201,1.41342307,2776.2,2776.0,0.68030751]
[1645859328997,3.5,2776.6,2776.0,0.68030751]
[1645859329246,4.6991,2776.6,2776.0,0.68030755]
[1645859329448,4.6991,2776.6,2776.1,0.67537678]
[1645859329950,1.1991,2776.6,2776.1,0.67537678]
[1645859330553,1.1991,2776.6,2776.2,0.00493056]
[1645859331553,2.589869,2776.6,2776.0,0.67537678]
[1645859331754,2.589869,2776.6,2776.3,0.00493051]
[1645859331755,6.089869,2776.6,2776.3,0.00493051]
[1645859331954,2.589869,2776.6,2776.3,0.00493051]
[1645859332359,1.20440099,2776.6,2776.3,0.00493051]
[1645859332764,1.20440099,2776.6,2775.9,0.67862295]
[1645859332998,1.20440099,2776.6,2776.3,0.00493047]
[1645859333999,5.0302507,2776.7,2776.0,0.67537678]
[1645859334203,4.89190567,2776.7,2776.3,0.00493047]
[1645859334601,5.79265567,2776.7,2776.3,0.00493047]
[1645859335204,3.29265567,2776.7,2776.1,0.00324617]
[1645859335406,3.29265567,2776.7,2776.4,0.00493043]
[1645859335702,2.29265567,2776.7,2776.4,0.00493043]
[1645859335903,3.29265567,2776.7,2776.4,0.00493043]
[1645859336102,3.5,2776.6,2776.4,0.00493043]
[1645859336302,3.29265567,2776.7,2776.0,0.00324617]
[1645859336503,2.29265567,2776.7,2775.9,0.67537678]
[1645859336754,3.29265567,2776.7,2776.4,0.00493038]
[1645859336954,2.29265567,2776.7,2776.4,0.00493038]
[1645859337156,3.29265567,2776.7,2776.4,0.00493038]
[1645859337655,2.29265567,2776.7,2776.0,0.00324617]
[1645859337857,3.5,2776.6,2776.4,0.00493038]
[1645859338257,2.29265567,2776.7,2776.4,0.00493038]
[1645859338458,3.5,2776.6,2776.4,0.00493038]
[1645859338659,3.5,2776.6,2776.0,0.00324617]
[1645859338857,3.5,2776.6,2775.9,0.67537678]
[1645859339059,3.5,2776.6,2776.4,0.00493038]
[1645859339259,2.29265567,2776.7,2776.4,0.00493038]
[1645859339659,2.29265567,2776.7,2776.5,0.02924948]
[1645859340260,3.49512133,2776.6,2776.5,0.02924948]
[1645859340503,2.29265567,2776.7,2776.5,0.02924948]